[Event "Early-Titled-Tuesday-Blitz-January-23-2024"]
[Site "Chess.com"]
[Date "2024.01.23"]
[Round "7"]
[White "eightbyeightchess"]
[Black "CaspiIsrael"]
[Result "1/2-1/2"]
[WhiteElo "2402"]
[BlackElo "2689"]
[TimeControl "180+1"]
[EndTime "9:20:21 PST"]
[Termination "Game drawn by repetition"]

1. e4 {[%clk 0:03:00]} 1... d5 {[%clk 0:02:59.3]} 2. exd5 {[%clk 0:02:59.4]}
2... Qxd5 {[%clk 0:03:00.2]} 3. d4 {[%clk 0:02:54]} 3... e5 {[%clk 0:02:59.4]}
4. dxe5 {[%clk 0:02:44.2]} 4... Qxd1+ {[%clk 0:02:59.3]} 5. Kxd1 {[%clk
0:02:45.1]} 5... Bf5 {[%clk 0:02:59.8]} 6. f4 {[%clk 0:02:45]} 6... Nc6 {[%clk
0:02:58.9]} 7. Bb5 {[%clk 0:02:38.9]} 7... O-O-O+ {[%clk 0:02:59.4]} 8. Bd2
{[%clk 0:02:39.1]} 8... Bxc2+ {[%clk 0:02:59.1]} 9. Kxc2 {[%clk 0:02:38.6]} 9...
Nd4+ {[%clk 0:02:59.7]} 10. Kc1 {[%clk 0:02:36.4]} 10... Nxb5 {[%clk 0:03:00.6]}
11. Nf3 {[%clk 0:02:34.1]} 11... Nh6 {[%clk 0:03:00.2]} 12. Nc3 {[%clk
0:02:33.1]} 12... Nxc3 {[%clk 0:02:59.3]} 13. Bxc3 {[%clk 0:02:34]} 13... Bc5
{[%clk 0:02:58.9]} 14. Kc2 {[%clk 0:02:28.9]} 14... Nf5 {[%clk 0:02:57.4]} 15.
g3 {[%clk 0:02:21.5]} 15... h6 {[%clk 0:02:55.1]} 16. Rac1 {[%clk 0:02:20.3]}
16... Rd7 {[%clk 0:02:51.9]} 17. b4 {[%clk 0:02:16.2]} 17... Bb6 {[%clk
0:02:47.6]} 18. a4 {[%clk 0:02:08.4]} 18... a6 {[%clk 0:02:47.4]} 19. b5 {[%clk
0:02:05.7]} 19... axb5 {[%clk 0:02:39.3]} 20. axb5 {[%clk 0:02:06.6]} 20... Rd5
{[%clk 0:02:39.6]} 21. Ra1 {[%clk 0:01:53.9]} 21... Rhd8 {[%clk 0:02:37.9]} 22.
Ra8+ {[%clk 0:01:51.8]} 22... Kd7 {[%clk 0:02:38]} 23. Rxd8+ {[%clk 0:01:52.6]}
23... Kxd8 {[%clk 0:02:38.9]} 24. Rb1 {[%clk 0:01:44.1]} 24... Ne3+ {[%clk
0:02:38.8]} 25. Kc1 {[%clk 0:01:41.9]} 25... Rd1+ {[%clk 0:02:33.8]} 26. Kb2
{[%clk 0:01:41.8]} 26... Nc4+ {[%clk 0:02:33.5]} 27. Kc2 {[%clk 0:01:40.5]}
27... Rxb1 {[%clk 0:02:26.4]} 28. Kxb1 {[%clk 0:01:40.4]} 28... Na3+ {[%clk
0:02:27.1]} 29. Kc1 {[%clk 0:01:39.8]} 29... Nxb5 {[%clk 0:02:28]} 30. Bb2
{[%clk 0:01:40]} 30... Ke7 {[%clk 0:02:25.8]} 31. e6 {[%clk 0:01:30.9]} 31... f6
{[%clk 0:02:18.9]} 32. f5 {[%clk 0:01:30.2]} 32... Be3+ {[%clk 0:02:09.2]} 33.
Kc2 {[%clk 0:01:30.1]} 33... c5 {[%clk 0:02:09.3]} 34. Kd3 {[%clk 0:01:28.3]}
34... Bf2 {[%clk 0:02:08.1]} 35. Ke2 {[%clk 0:01:12]} 35... Bd4 {[%clk
0:02:07.3]} 36. Bxd4 {[%clk 0:01:04]} 36... cxd4 {[%clk 0:01:59.5]} 37. Kd3
{[%clk 0:01:04.4]} 37... h5 {[%clk 0:01:54.3]} 38. h3 {[%clk 0:01:04.6]} 38...
g6 {[%clk 0:01:43.4]} 39. g4 {[%clk 0:00:45.1]} 39... gxf5 {[%clk 0:01:43.3]}
40. gxf5 {[%clk 0:00:32.8]} 40... Nd6 {[%clk 0:01:43.1]} 41. Nxd4 {[%clk
0:00:33.4]} 41... Kd8 {[%clk 0:01:39.9]} 42. Kc3 {[%clk 0:00:31.2]} 42... Ne4+
{[%clk 0:01:38.5]} 43. Kb4 {[%clk 0:00:29.7]} 43... b6 {[%clk 0:01:15.8]} 44.
Kb5 {[%clk 0:00:26.4]} 44... Kc7 {[%clk 0:01:15.2]} 45. Kc4 {[%clk 0:00:09.9]}
45... h4 {[%clk 0:01:05]} 46. Kd5 {[%clk 0:00:09.4]} 46... Ng5 {[%clk
0:00:59.8]} 47. Nb5+ {[%clk 0:00:02.7]} 47... Kd8 {[%clk 0:00:59.9]} 48. Kd6
{[%clk 0:00:02.8]} 48... Ne4+ {[%clk 0:01:00.2]} 49. Kd5 {[%clk 0:00:03.6]}
49... Ng3 {[%clk 0:00:56.7]} 50. Nd6 {[%clk 0:00:03.8]} 50... b5 {[%clk
0:00:51.4]} 51. Kc5 {[%clk 0:00:04.3]} 51... Ke7 {[%clk 0:00:46.7]} 52. Nc8+
{[%clk 0:00:03.2]} 52... Kd8 {[%clk 0:00:43.7]} 53. Nd6 {[%clk 0:00:04.1]} 53...
Nh5 {[%clk 0:00:27.2]} 54. Kxb5 {[%clk 0:00:03.5]} 54... Nf4 {[%clk 0:00:27.3]}
55. Ne4 {[%clk 0:00:03.1]} 55... Ke7 {[%clk 0:00:26.8]} 56. Nf2 {[%clk 0:00:03]}
56... Ng2 {[%clk 0:00:23.4]} 57. Kc5 {[%clk 0:00:03.5]} 57... Ne3 {[%clk
0:00:23.6]} 58. Kd4 {[%clk 0:00:02.5]} 58... Nxf5+ {[%clk 0:00:24.2]} 59. Ke4
{[%clk 0:00:03.4]} 59... Kxe6 {[%clk 0:00:24.1]} 60. Kf4 {[%clk 0:00:04.3]}
60... Nh6 {[%clk 0:00:20]} 61. Nd3 {[%clk 0:00:04.3]} 61... Kf7 {[%clk
0:00:19.8]} 62. Ne1 {[%clk 0:00:04.5]} 62... Kg6 {[%clk 0:00:19.9]} 63. Ng2
{[%clk 0:00:04.7]} 63... Kh5 {[%clk 0:00:20]} 64. Ne3 {[%clk 0:00:05.1]} 64...
Nf7 {[%clk 0:00:19.3]} 65. Kf5 {[%clk 0:00:05.6]} 65... Ng5 {[%clk 0:00:17.3]}
66. Ng2 {[%clk 0:00:05.7]} 66... Nh7 {[%clk 0:00:15.8]} 67. Nf4+ {[%clk
0:00:05.4]} 67... Kh6 {[%clk 0:00:16]} 68. Ng2 {[%clk 0:00:06.2]} 68... Kh5
{[%clk 0:00:16.4]} 69. Nf4+ {[%clk 0:00:07.1]} 69... Kh6 {[%clk 0:00:16.8]} 70.
Ng2 {[%clk 0:00:07.8]} 70... Ng5 {[%clk 0:00:16.1]} 71. Nxh4 {[%clk 0:00:07.6]}
71... Kg7 {[%clk 0:00:16.5]} 72. Ng2 {[%clk 0:00:07]} 72... Nxh3 {[%clk
0:00:16.8]} 73. Nf4 {[%clk 0:00:06.8]} 73... Nxf4 {[%clk 0:00:15.8]} 74. Kxf4
{[%clk 0:00:07.7]} 74... Kg6 {[%clk 0:00:14]} 75. Kg4 {[%clk 0:00:08.4]} 75...
Kh6 {[%clk 0:00:14.5]} 76. Kf5 {[%clk 0:00:08.7]} 76... Kg7 {[%clk 0:00:15.1]}
77. Kf4 {[%clk 0:00:09.6]} 77... Kf7 {[%clk 0:00:15.5]} 78. Kf5 {[%clk
0:00:10.2]} 78... Ke7 {[%clk 0:00:16.1]} 79. Kf4 {[%clk 0:00:11.1]} 79... Kd6
{[%clk 0:00:16.6]} 80. Kf5 {[%clk 0:00:11.6]} 80... Ke7 {[%clk 0:00:17.2]} 81.
Kf4 {[%clk 0:00:12.5]} 81... Ke6 {[%clk 0:00:17.9]} 82. Ke4 {[%clk 0:00:13.1]}
82... f5+ {[%clk 0:00:18.5]} 83. Kf4 {[%clk 0:00:14]} 83... Kf6 {[%clk
0:00:18.8]} 84. Kf3 {[%clk 0:00:14.7]} 84... Kg6 {[%clk 0:00:19.6]} 85. Kf4
{[%clk 0:00:15.4]} 85... Kf6 {[%clk 0:00:20.1]} 86. Kf3 {[%clk 0:00:16.3]} 86...
Kg5 {[%clk 0:00:20.7]} 87. Kg3 {[%clk 0:00:17.2]} 87... Kh5 {[%clk 0:00:21.3]}
88. Kf4 {[%clk 0:00:17.9]} 88... Kg6 {[%clk 0:00:22.2]} 89. Kf3 {[%clk
0:00:18.3]} 89... Kf6 {[%clk 0:00:23.1]} 90. Kf4 {[%clk 0:00:19]} 90... Ke6
{[%clk 0:00:23.7]} 91. Kf3 {[%clk 0:00:19.7]} 91... Ke5 {[%clk 0:00:24.3]} 92.
Ke3 {[%clk 0:00:20.5]} 92... Kd5 {[%clk 0:00:24.8]} 93. Kf4 {[%clk 0:00:21.1]}
93... Ke6 {[%clk 0:00:25.7]} 94. Kf3 {[%clk 0:00:21.8]} 94... Ke5 {[%clk
0:00:26.3]} 95. Ke3 {[%clk 0:00:22.6]} 95... f4+ {[%clk 0:00:27.2]} 96. Kf3
{[%clk 0:00:23.3]} 96... Kf5 {[%clk 0:00:27.9]} 97. Kf2 {[%clk 0:00:24]} 97...
Kg5 {[%clk 0:00:27.8]} 98. Kf3 {[%clk 0:00:24.6]} 98... Kf5 {[%clk 0:00:28.3]}
99. Kf2 {[%clk 0:00:25.3]} 99... Kg4 {[%clk 0:00:29.2]} 100. Kg2 {[%clk
0:00:25.9]} 100... Kh4 {[%clk 0:00:29.9]} 101. Kf3 {[%clk 0:00:26.4]} 101... Kg5
{[%clk 0:00:30.4]} 102. Kf2 {[%clk 0:00:26.9]} 102... Kg4 {[%clk 0:00:31]} 103.
Kg2 {[%clk 0:00:27.6]} 103... Kf5 {[%clk 0:00:31.2]} 104. Kf3 {[%clk 0:00:28.2]}
104... Ke5 {[%clk 0:00:31.8]} 105. Kf2 {[%clk 0:00:28.9]} 105... Ke4 {[%clk
0:00:32.4]} 106. Ke2 {[%clk 0:00:29.7]} 106... f3+ {[%clk 0:00:33]} 107. Kf2
{[%clk 0:00:30.3]} 107... Kf4 {[%clk 0:00:33.6]} 108. Kf1 {[%clk 0:00:31.1]}
108... Ke5 {[%clk 0:00:34.1]} 109. Kf2 {[%clk 0:00:31.7]} 109... Kf4 {[%clk
0:00:34.8]} 110. Kf1 {[%clk 0:00:32.4]} 110... Kg4 {[%clk 0:00:35.4]} 111. Kf2
{[%clk 0:00:33]} 111... Kf4 {[%clk 0:00:35.6]} 1/2-1/2

[Event "Early-Titled-Tuesday-Blitz-January-23-2024"]
[Site "Chess.com"]
[Date "2024.01.23"]
[Round "8"]
[White "Lennis93"]
[Black "Aash20"]
[Result "1-0"]
[WhiteElo "2658"]
[BlackElo "2495"]
[TimeControl "180+1"]
[EndTime "9:22:58 PST"]
[Termination "Lennis93 won by resignation"]

1. d4 {[%clk 0:03:00.9]} 1... d5 {[%clk 0:02:58.5]} 2. c4 {[%clk 0:02:51.2]}
2... c6 {[%clk 0:02:57.8]} 3. Nf3 {[%clk 0:02:52.1]} 3... Nf6 {[%clk 0:02:57.2]}
4. Nc3 {[%clk 0:02:51.6]} 4... dxc4 {[%clk 0:02:57]} 5. a4 {[%clk 0:02:49.8]}
5... Bg4 {[%clk 0:02:56.2]} 6. Ne5 {[%clk 0:02:49.5]} 6... e6 {[%clk 0:02:55.4]}
7. f3 {[%clk 0:02:47]} 7... Bh5 {[%clk 0:02:54.7]} 8. h4 {[%clk 0:02:45.8]} 8...
Bd6 {[%clk 0:02:49]} 9. g4 {[%clk 0:02:45.4]} 9... Bxe5 {[%clk 0:02:48.9]} 10.
dxe5 {[%clk 0:02:45.8]} 10... Qxd1+ {[%clk 0:02:48.4]} 11. Nxd1 {[%clk
0:02:44.8]} 11... Nxg4 {[%clk 0:02:48]} 12. fxg4 {[%clk 0:02:44.3]} 12... Bxg4
{[%clk 0:02:48.9]} 13. Rg1 {[%clk 0:02:42.5]} 13... h5 {[%clk 0:02:48]} 14. Ne3
{[%clk 0:02:42.8]} 14... Nd7 {[%clk 0:02:47.5]} 15. Nxc4 {[%clk 0:02:41.9]}
15... Ke7 {[%clk 0:02:37.2]} 16. Bf4 {[%clk 0:02:40.2]} 16... f6 {[%clk
0:02:36.7]} 17. Rd1 {[%clk 0:02:35.3]} 17... Nb6 {[%clk 0:02:30.8]} 18. Ne3
{[%clk 0:02:32.8]} 18... Nxa4 {[%clk 0:02:23.4]} 19. Nxg4 {[%clk 0:02:32.1]}
19... hxg4 {[%clk 0:02:23.2]} 20. Rxg4 {[%clk 0:02:32.6]} 20... Rhg8 {[%clk
0:02:22]} 21. exf6+ {[%clk 0:02:32.3]} 21... gxf6 {[%clk 0:02:21.8]} 22. Bd6+
{[%clk 0:02:32.4]} 22... Kf7 {[%clk 0:02:21.6]} 23. Rxa4 {[%clk 0:02:33.3]} 1-0

[Event "Early-Titled-Tuesday-Blitz-January-23-2024"]
[Site "Chess.com"]
[Date "2024.01.23"]
[Round "8"]
[White "Skatchkov_V"]
[Black "soloderisas"]
[Result "0-1"]
[WhiteElo "2613"]
[BlackElo "2498"]
[TimeControl "180+1"]
[EndTime "9:23:05 PST"]
[Termination "soloderisas won by resignation"]

1. d4 {[%clk 0:03:00.9]} 1... d5 {[%clk 0:02:58.1]} 2. c4 {[%clk 0:03:00.9]}
2... e6 {[%clk 0:02:57.7]} 3. Nf3 {[%clk 0:03:00.7]} 3... Nf6 {[%clk 0:02:57.3]}
4. g3 {[%clk 0:02:59.9]} 4... Bb4+ {[%clk 0:02:54.1]} 5. Nbd2 {[%clk 0:02:58.6]}
5... O-O {[%clk 0:02:53.5]} 6. Bg2 {[%clk 0:02:58.6]} 6... c5 {[%clk 0:02:42.4]}
7. dxc5 {[%clk 0:02:56.4]} 7... dxc4 {[%clk 0:02:41.2]} 8. O-O {[%clk
0:02:56.1]} 8... Bxc5 {[%clk 0:02:40.1]} 9. Nxc4 {[%clk 0:02:55.9]} 9... Nc6
{[%clk 0:02:38.9]} 10. Bf4 {[%clk 0:02:42]} 10... Nd5 {[%clk 0:02:36.8]} 11. Bd2
{[%clk 0:02:38.9]} 11... b5 {[%clk 0:02:21.7]} 12. Rc1 {[%clk 0:02:28.7]} 12...
bxc4 {[%clk 0:02:20]} 13. Rxc4 {[%clk 0:02:29.6]} 13... Qb6 {[%clk 0:02:10]} 14.
Qc1 {[%clk 0:02:30]} 14... Nd4 {[%clk 0:02:02.4]} 15. Nxd4 {[%clk 0:02:24.6]}
15... Bxd4 {[%clk 0:02:02.3]} 0-1

[Event "Early-Titled-Tuesday-Blitz-January-23-2024"]
[Site "Chess.com"]
[Date "2024.01.23"]
[Round "8"]
[White "Statham_01"]
[Black "LileKoridze"]
[Result "1-0"]
[WhiteElo "2537"]
[BlackElo "2316"]
[TimeControl "180+1"]
[EndTime "9:23:28 PST"]
[Termination "Statham_01 won by resignation"]

1. e4 {[%clk 0:03:00.9]} 1... c5 {[%clk 0:02:59.2]} 2. Nf3 {[%clk 0:03:00.3]}
2... d6 {[%clk 0:02:59.6]} 3. d4 {[%clk 0:03:00.6]} 3... cxd4 {[%clk 0:02:59.7]}
4. Nxd4 {[%clk 0:03:01.5]} 4... Nf6 {[%clk 0:02:59.8]} 5. Nc3 {[%clk 0:03:02.1]}
5... a6 {[%clk 0:03:00.4]} 6. a3 {[%clk 0:03:02.7]} 6... g6 {[%clk 0:02:44.6]}
7. Be3 {[%clk 0:03:02.4]} 7... Bg7 {[%clk 0:02:44.7]} 8. f3 {[%clk 0:03:02.9]}
8... Nc6 {[%clk 0:02:44.5]} 9. Qd2 {[%clk 0:03:02.9]} 9... Qc7 {[%clk
0:02:41.9]} 10. O-O-O {[%clk 0:02:55.5]} 10... b5 {[%clk 0:02:41.1]} 11. g4
{[%clk 0:02:54.3]} 11... Bb7 {[%clk 0:02:29.3]} 12. g5 {[%clk 0:02:51.9]} 12...
Nxd4 {[%clk 0:02:29.4]} 13. gxf6 {[%clk 0:02:42.3]} 13... Nb3+ {[%clk
0:02:26.6]} 14. cxb3 {[%clk 0:02:41.3]} 14... Bxf6 {[%clk 0:02:26]} 15. Kb1
{[%clk 0:02:35.6]} 15... Rc8 {[%clk 0:02:21.1]} 16. Bd4 {[%clk 0:02:29.7]} 16...
Bxd4 {[%clk 0:02:17.7]} 17. Qxd4 {[%clk 0:02:30.6]} 17... O-O {[%clk 0:02:18.2]}
18. h4 {[%clk 0:02:22.5]} 18... h5 {[%clk 0:02:17.8]} 19. Rg1 {[%clk 0:02:20.7]}
19... Qc5 {[%clk 0:02:10.1]} 20. Qxc5 {[%clk 0:02:18.5]} 20... Rxc5 {[%clk
0:02:09.9]} 21. b4 {[%clk 0:02:18.5]} 21... Rc7 {[%clk 0:02:10.1]} 22. Nd5
{[%clk 0:02:18.4]} 22... Bxd5 {[%clk 0:02:10.1]} 23. exd5 {[%clk 0:02:17.3]}
23... Rfc8 {[%clk 0:02:10.6]} 24. Bh3 {[%clk 0:02:16.6]} 24... Rd8 {[%clk
0:02:10.3]} 25. Rc1 {[%clk 0:02:16.9]} 25... Rxc1+ {[%clk 0:02:09.4]} 26. Rxc1
{[%clk 0:02:17.8]} 1-0

[Event "Early-Titled-Tuesday-Blitz-January-23-2024"]
[Site "Chess.com"]
[Date "2024.01.23"]
[Round "8"]
[White "Oleksandr_Bortnyk"]
[Black "tptagain"]
[Result "1-0"]
[WhiteElo "3081"]
[BlackElo "2927"]
[TimeControl "180+1"]
[EndTime "9:24:12 PST"]
[Termination "Oleksandr_Bortnyk won by resignation"]

1. e4 {[%clk 0:03:00.9]} 1... c6 {[%clk 0:02:59.9]} 2. d4 {[%clk 0:02:58.5]}
2... d5 {[%clk 0:03:00.1]} 3. Nc3 {[%clk 0:02:59.1]} 3... dxe4 {[%clk
0:02:58.2]} 4. Nxe4 {[%clk 0:03:00]} 4... Nf6 {[%clk 0:02:58.7]} 5. Nxf6+ {[%clk
0:03:00]} 5... exf6 {[%clk 0:02:59.6]} 6. c3 {[%clk 0:03:00.5]} 6... Bd6 {[%clk
0:03:00.1]} 7. Bd3 {[%clk 0:03:01.2]} 7... O-O {[%clk 0:03:00.3]} 8. Qc2 {[%clk
0:03:02]} 8... Re8+ {[%clk 0:03:00.7]} 9. Ne2 {[%clk 0:03:02.6]} 9... h5 {[%clk
0:03:01.2]} 10. O-O {[%clk 0:03:03.1]} 10... h4 {[%clk 0:03:01.3]} 11. Nf4
{[%clk 0:03:03.3]} 11... c5 {[%clk 0:02:53.1]} 12. Qd1 {[%clk 0:02:26.8]} 12...
cxd4 {[%clk 0:02:40.9]} 13. Qh5 {[%clk 0:02:23.7]} 13... f5 {[%clk 0:02:41]} 14.
Bc4 {[%clk 0:02:20.5]} 14... Be6 {[%clk 0:02:09.9]} 15. Nxe6 {[%clk 0:02:20.2]}
15... fxe6 {[%clk 0:02:09.6]} 16. Re1 {[%clk 0:02:17.6]} 16... Nd7 {[%clk
0:01:12.2]} 17. Rxe6 {[%clk 0:02:14.1]} 1-0

[Event "Early-Titled-Tuesday-Blitz-January-23-2024"]
[Site "Chess.com"]
[Date "2024.01.23"]
[Round "8"]
[White "AlexOstrovskiy"]
[Black "MVM2008"]
[Result "1-0"]
[WhiteElo "2786"]
[BlackElo "2557"]
[TimeControl "180+1"]
[EndTime "9:24:17 PST"]
[Termination "AlexOstrovskiy won by resignation"]

1. e4 {[%clk 0:03:00.9]} 1... e5 {[%clk 0:02:51.9]} 2. Nc3 {[%clk 0:03:00.2]}
2... Bc5 {[%clk 0:02:51.4]} 3. Bc4 {[%clk 0:02:55.2]} 3... Nf6 {[%clk
0:02:50.8]} 4. d3 {[%clk 0:02:51.1]} 4... b5 {[%clk 0:02:47.4]} 5. Bxb5 {[%clk
0:02:39.9]} 5... c6 {[%clk 0:02:46.9]} 6. Ba4 {[%clk 0:02:22.4]} 6... d5 {[%clk
0:02:44.4]} 7. exd5 {[%clk 0:02:15.5]} 7... O-O {[%clk 0:02:43.6]} 8. dxc6
{[%clk 0:01:52.5]} 8... Ng4 {[%clk 0:02:26.2]} 9. Nh3 {[%clk 0:01:46.5]} 9...
Qh4 {[%clk 0:02:12]} 10. Qf3 {[%clk 0:01:29.4]} 10... f5 {[%clk 0:01:47.7]} 11.
Qd5+ {[%clk 0:01:27.5]} 11... Kh8 {[%clk 0:01:43.4]} 12. Qxc5 {[%clk 0:01:27.2]}
12... Rf6 {[%clk 0:01:38.6]} 13. Bg5 {[%clk 0:01:25.7]} 1-0

[Event "Early-Titled-Tuesday-Blitz-January-23-2024"]
[Site "Chess.com"]
[Date "2024.01.23"]
[Round "8"]
[White "DDTerziev04"]
[Black "ImportedItalianMaple"]
[Result "1-0"]
[WhiteElo "2235"]
[BlackElo "2448"]
[TimeControl "180+1"]
[EndTime "9:24:18 PST"]
[Termination "DDTerziev04 won by checkmate"]

1. e4 {[%clk 0:03:00.9]} 1... g6 {[%clk 0:02:59.6]} 2. d4 {[%clk 0:02:59.5]}
2... Bg7 {[%clk 0:03:00]} 3. Nf3 {[%clk 0:02:58.2]} 3... c6 {[%clk 0:02:59.8]}
4. Nc3 {[%clk 0:02:57.5]} 4... d5 {[%clk 0:03:00]} 5. Be2 {[%clk 0:02:54.5]}
5... Bg4 {[%clk 0:02:49.8]} 6. Be3 {[%clk 0:02:51.4]} 6... Nf6 {[%clk
0:02:40.1]} 7. e5 {[%clk 0:02:48.7]} 7... Ne4 {[%clk 0:02:39.8]} 8. Nxe4 {[%clk
0:02:42]} 8... dxe4 {[%clk 0:02:39.9]} 9. Nd2 {[%clk 0:02:42.6]} 9... Bxe2
{[%clk 0:02:26]} 10. Qxe2 {[%clk 0:02:42.3]} 10... f5 {[%clk 0:02:00.5]} 11.
exf6 {[%clk 0:02:41.6]} 11... Bxf6 {[%clk 0:02:00.7]} 12. Nxe4 {[%clk
0:02:39.2]} 12... Bxd4 {[%clk 0:02:00.9]} 13. O-O-O {[%clk 0:02:37.6]} 13...
Bxe3+ {[%clk 0:02:00.7]} 14. Qxe3 {[%clk 0:02:38]} 14... Qa5 {[%clk 0:01:55.1]}
15. Nd6+ {[%clk 0:02:37.1]} 15... Kf8 {[%clk 0:01:46.6]} 16. Qf4+ {[%clk
0:02:26]} 16... Kg7 {[%clk 0:01:43.8]} 17. Qf7+ {[%clk 0:02:25]} 17... Kh6
{[%clk 0:01:44.4]} 18. Qxe7 {[%clk 0:02:24.8]} 18... Na6 {[%clk 0:01:10.7]} 19.
Nf7+ {[%clk 0:02:20.9]} 19... Kh5 {[%clk 0:01:08.2]} 20. Qe2+ {[%clk 0:02:14.1]}
20... Kh4 {[%clk 0:01:06.3]} 21. Rd4# {[%clk 0:02:12.2]} 1-0

[Event "Early-Titled-Tuesday-Blitz-January-23-2024"]
[Site "Chess.com"]
[Date "2024.01.23"]
[Round "8"]
[White "deribas12345"]
[Black "Roedor"]
[Result "1-0"]
[WhiteElo "2459"]
[BlackElo "2290"]
[TimeControl "180+1"]
[EndTime "9:24:28 PST"]
[Termination "deribas12345 won by resignation"]

1. d4 {[%clk 0:03:00.9]} 1... Nf6 {[%clk 0:02:58]} 2. c4 {[%clk 0:03:01.1]} 2...
g6 {[%clk 0:02:57.6]} 3. Nc3 {[%clk 0:03:01.4]} 3... d5 {[%clk 0:02:57.3]} 4.
Bg5 {[%clk 0:03:01.2]} 4... Bg7 {[%clk 0:02:56.6]} 5. Nf3 {[%clk 0:03:00.7]}
5... Ne4 {[%clk 0:02:56.3]} 6. Bh4 {[%clk 0:03:00.6]} 6... Nxc3 {[%clk
0:02:55.9]} 7. bxc3 {[%clk 0:03:01.5]} 7... dxc4 {[%clk 0:02:56.6]} 8. e3 {[%clk
0:03:01.6]} 8... b5 {[%clk 0:02:56.1]} 9. a4 {[%clk 0:02:58.7]} 9... c6 {[%clk
0:02:46.2]} 10. Qb1 {[%clk 0:02:58.6]} 10... a6 {[%clk 0:02:44.9]} 11. Be2
{[%clk 0:02:55.4]} 11... O-O {[%clk 0:02:44.2]} 12. O-O {[%clk 0:02:55.2]} 12...
Nd7 {[%clk 0:02:42.1]} 13. Qe4 {[%clk 0:02:54.4]} 13... Nf6 {[%clk 0:02:28]} 14.
Qxc6 {[%clk 0:02:53.1]} 14... Qd5 {[%clk 0:02:28.6]} 15. Qxd5 {[%clk 0:02:45.5]}
15... Nxd5 {[%clk 0:02:29.5]} 16. Rfc1 {[%clk 0:02:45.3]} 16... Bf6 {[%clk
0:02:25.1]} 17. Bxf6 {[%clk 0:02:41.5]} 17... exf6 {[%clk 0:02:24.6]} 18. axb5
{[%clk 0:02:41.5]} 18... Bb7 {[%clk 0:02:21.7]} 19. Bxc4 {[%clk 0:02:40.1]}
19... axb5 {[%clk 0:02:21.6]} 20. Rxa8 {[%clk 0:02:36.7]} 20... Rxa8 {[%clk
0:02:22.5]} 21. Bxb5 {[%clk 0:02:37]} 21... Nxc3 {[%clk 0:02:19.7]} 22. Rxc3
{[%clk 0:02:32]} 22... Ra1+ {[%clk 0:02:19]} 23. Bf1 {[%clk 0:02:32]} 23... Ba6
{[%clk 0:02:19.4]} 24. Nd2 {[%clk 0:02:32.2]} 24... Rd1 {[%clk 0:02:17]} 25. Rc2
{[%clk 0:02:31]} 25... g5 {[%clk 0:02:09.8]} 26. g4 {[%clk 0:02:30.2]} 26... h5
{[%clk 0:02:08.1]} 27. gxh5 {[%clk 0:02:29.7]} 27... f5 {[%clk 0:02:08.4]} 28.
Kg2 {[%clk 0:02:29.2]} 28... Bb7+ {[%clk 0:02:06.8]} 29. Kg3 {[%clk 0:02:23.4]}
29... Kg7 {[%clk 0:02:05.4]} 30. h4 {[%clk 0:02:21.7]} 30... Kh6 {[%clk
0:02:01.8]} 31. hxg5+ {[%clk 0:02:21]} 31... Kxg5 {[%clk 0:02:02.7]} 32. f4+
{[%clk 0:02:04]} 32... Kh6 {[%clk 0:02:02.8]} 33. Bg2 {[%clk 0:01:58.1]} 33...
Rg1 {[%clk 0:01:58.1]} 34. Nf3 {[%clk 0:01:57.8]} 34... Bxf3 {[%clk 0:01:58.2]}
35. Kxf3 {[%clk 0:01:57.4]} 35... Kxh5 {[%clk 0:01:58.8]} 36. Rd2 {[%clk
0:01:55.8]} 36... f6 {[%clk 0:01:58.7]} 37. d5 {[%clk 0:01:56]} 1-0

[Event "Early-Titled-Tuesday-Blitz-January-23-2024"]
[Site "Chess.com"]
[Date "2024.01.23"]
[Round "8"]
[White "kingofthenil"]
[Black "starworld123"]
[Result "1-0"]
[WhiteElo "2695"]
[BlackElo "2836"]
[TimeControl "180+1"]
[EndTime "9:24:32 PST"]
[Termination "kingofthenil won by resignation"]

1. e4 {[%clk 0:03:00.9]} 1... d6 {[%clk 0:02:55.6]} 2. d4 {[%clk 0:03:01.1]}
2... Nf6 {[%clk 0:02:52.8]} 3. Nc3 {[%clk 0:03:00.2]} 3... g6 {[%clk 0:02:52.6]}
4. Nf3 {[%clk 0:02:57.9]} 4... Bg7 {[%clk 0:02:51.6]} 5. Bg5 {[%clk 0:02:56.3]}
5... h6 {[%clk 0:02:48.7]} 6. Bf4 {[%clk 0:02:54.9]} 6... Nbd7 {[%clk
0:02:42.4]} 7. Qd2 {[%clk 0:02:54.4]} 7... g5 {[%clk 0:02:36.3]} 8. Bg3 {[%clk
0:02:49.8]} 8... Nh5 {[%clk 0:02:33.7]} 9. O-O-O {[%clk 0:02:44.7]} 9... e6
{[%clk 0:02:29]} 10. d5 {[%clk 0:02:36.2]} 10... Nc5 {[%clk 0:02:15.1]} 11. e5
{[%clk 0:02:33.1]} 11... Nxg3 {[%clk 0:02:11.2]} 12. hxg3 {[%clk 0:02:34]} 12...
dxe5 {[%clk 0:02:06]} 13. Qe3 {[%clk 0:02:33.6]} 13... Qd6 {[%clk 0:01:58]} 14.
dxe6 {[%clk 0:02:24.5]} 14... Qb6 {[%clk 0:01:31.5]} 15. Nd5 {[%clk 0:02:16.7]}
15... Qa5 {[%clk 0:01:32.1]} 16. b4 {[%clk 0:02:17.3]} 16... Qxa2 {[%clk
0:01:26.4]} 17. Nxc7+ {[%clk 0:02:16.1]} 17... Ke7 {[%clk 0:01:04]} 18. Qxc5+
{[%clk 0:02:13.7]} 18... Kf6 {[%clk 0:01:04.5]} 19. Qxe5+ {[%clk 0:02:07.5]} 1-0

[Event "Early-Titled-Tuesday-Blitz-January-23-2024"]
[Site "Chess.com"]
[Date "2024.01.23"]
[Round "8"]
[White "Heinza9"]
[Black "Smiechu"]
[Result "1-0"]
[WhiteElo "2336"]
[BlackElo "2479"]
[TimeControl "180+1"]
[EndTime "9:25:02 PST"]
[Termination "Heinza9 won by resignation"]

1. e4 {[%clk 0:03:00.9]} 1... c5 {[%clk 0:02:59.7]} 2. Nf3 {[%clk 0:03:00.8]}
2... g6 {[%clk 0:03:00.3]} 3. c3 {[%clk 0:03:00.5]} 3... Bg7 {[%clk 0:02:59.8]}
4. d4 {[%clk 0:03:00.4]} 4... cxd4 {[%clk 0:03:00.5]} 5. cxd4 {[%clk 0:03:00.2]}
5... d5 {[%clk 0:03:00.7]} 6. exd5 {[%clk 0:03:00.6]} 6... Nf6 {[%clk
0:03:00.7]} 7. Bb5+ {[%clk 0:02:58.5]} 7... Nbd7 {[%clk 0:03:00.2]} 8. Nc3
{[%clk 0:02:57]} 8... O-O {[%clk 0:03:00.4]} 9. O-O {[%clk 0:02:56.4]} 9... Nb6
{[%clk 0:03:00.6]} 10. h3 {[%clk 0:02:55.8]} 10... Nbxd5 {[%clk 0:02:58.6]} 11.
Bg5 {[%clk 0:02:55.3]} 11... Bd7 {[%clk 0:02:53.3]} 12. Bc4 {[%clk 0:02:51.3]}
12... Be6 {[%clk 0:02:45.2]} 13. Bb3 {[%clk 0:02:39.4]} 13... Rc8 {[%clk
0:02:38.4]} 14. Rc1 {[%clk 0:02:38.3]} 14... Nxc3 {[%clk 0:02:38]} 15. bxc3
{[%clk 0:02:38.3]} 15... Bxb3 {[%clk 0:02:35.8]} 16. Qxb3 {[%clk 0:02:39.2]}
16... b6 {[%clk 0:02:34.1]} 17. c4 {[%clk 0:02:31.8]} 17... Qd6 {[%clk
0:02:25.5]} 18. Rfe1 {[%clk 0:02:26.3]} 18... e6 {[%clk 0:02:23.6]} 19. Qe3
{[%clk 0:02:20.1]} 19... Qb4 {[%clk 0:02:15.2]} 20. Ne5 {[%clk 0:02:13.9]} 20...
b5 {[%clk 0:02:07.8]} 21. Bxf6 {[%clk 0:02:11.5]} 21... Bxf6 {[%clk 0:01:59.8]}
22. Nd7 {[%clk 0:02:11.7]} 22... Bxd4 {[%clk 0:01:34.8]} 23. Qxd4 {[%clk
0:02:08.6]} 23... Rxc4 {[%clk 0:01:34.4]} 24. Qe5 {[%clk 0:01:36.7]} 24... Rfc8
{[%clk 0:01:17.3]} 25. Nf6+ {[%clk 0:01:34.3]} 25... Kg7 {[%clk 0:01:17]} 26.
Nd5+ {[%clk 0:01:32.7]} 1-0